fUSD/lending_fUSD_20260506
["ID","MTS","AMOUNT","RATE_DAILY","PERIOD"]
[421668005,1778035859000,-1000.0,0.000378,7]
[421668003,1778035859000,-1000.0,0.000378,7]
[421668002,1778035859000,-1000.0,0.000378,7]
[421668008,1778035859000,-693.0,0.000378,7]
[421668006,1778035859000,-1000.0,0.000378,7]
[421668007,1778035859000,-1000.0,0.000378,7]
[421668009,1778035859000,-1000.0,0.000378,7]
[421668012,1778035859000,-1000.0,0.000378,7]
[421668004,1778035859000,-1000.0,0.000378,7]
[421668015,1778035859000,-1000.0,0.000378,7]
[421668011,1778035859000,-1000.0,0.000378,7]
[421668032,1778035859000,-384.0,0.00037863,2]
[421668024,1778035859000,-1000.0,0.000378,7]
[421668022,1778035859000,-1000.0,0.000378,7]
[421668017,1778035859000,-1000.0,0.000378,7]
[421668020,1778035859000,-1000.0,0.000378,7]
[421668018,1778035859000,-1000.0,0.000378,7]
[421668031,1778035859000,-1500.0,0.00037808,5]
[421668019,1778035859000,-1000.0,0.000378,7]
[421668016,1778035859000,-1000.0,0.000378,7]
[421668014,1778035859000,-1000.0,0.000378,7]
[421668013,1778035859000,-1000.0,0.000378,7]
[421668021,1778035859000,-1000.0,0.000378,7]
[421668098,1778035860000,-453.0,0.00038192,90]
[421668108,1778035860000,-453.0,0.00038192,90]
[421668100,1778035860000,-453.0,0.00038192,90]
[421668096,1778035860000,-453.0,0.00038192,90]
[421668091,1778035860000,-453.0,0.00038192,90]
[421668090,1778035860000,-453.0,0.00038192,90]
[421668095,1778035860000,-453.0,0.00038192,90]
[421668093,1778035860000,-453.0,0.00038192,90]
[421668088,1778035860000,-453.0,0.00038192,90]
[421668092,1778035860000,-453.0,0.00038192,90]
[421668111,1778035860000,-453.0,0.00038192,90]
[421668094,1778035860000,-453.0,0.00038192,90]
[421668099,1778035860000,-453.0,0.00038192,90]
[421668112,1778035860000,-453.0,0.00038192,90]
[421668106,1778035860000,-453.0,0.00038192,90]
[421668110,1778035860000,-453.0,0.00038192,90]
[421668101,1778035860000,-453.0,0.00038192,90]
[421668104,1778035860000,-453.0,0.00038192,90]
[421668103,1778035860000,-453.0,0.00038192,90]
[421668105,1778035860000,-453.0,0.00038192,90]
[421668107,1778035860000,-453.0,0.00038192,90]
[421668109,1778035860000,-453.0,0.00038192,90]
[421668115,1778035860000,-453.0,0.00038192,90]
[421668113,1778035860000,-453.0,0.00038192,90]
[421668114,1778035860000,-453.0,0.00038192,90]
[421668123,1778035860000,-453.0,0.00038192,90]
[421668097,1778035860000,-453.0,0.00038192,90]
[421668102,1778035860000,-453.0,0.00038192,90]
[421668089,1778035860000,-453.0,0.00038192,90]
[421668074,1778035860000,-453.0,0.00038192,90]
[421668087,1778035860000,-453.0,0.00038192,90]
[421668118,1778035860000,-453.0,0.00038192,90]
[421668061,1778035860000,-453.0,0.00038192,90]
[421668058,1778035860000,-453.0,0.00038192,90]
[421668057,1778035860000,-453.0,0.00038192,90]
[421668059,1778035860000,-453.0,0.00038192,90]
[421668063,1778035860000,-453.0,0.00038192,90]
[421668062,1778035860000,-453.0,0.00038192,90]
[421668065,1778035860000,-453.0,0.00038192,90]
[421668064,1778035860000,-453.0,0.00038192,90]
[421668066,1778035860000,-453.0,0.00038192,90]
[421668067,1778035860000,-453.0,0.00038192,90]
[421668068,1778035860000,-453.0,0.00038192,90]
[421668072,1778035860000,-453.0,0.00038192,90]
[421668086,1778035860000,-453.0,0.00038192,90]
[421668070,1778035860000,-453.0,0.00038192,90]
[421668069,1778035860000,-453.0,0.00038192,90]
[421668082,1778035860000,-453.0,0.00038192,90]
[421668085,1778035860000,-453.0,0.00038192,90]
[421668075,1778035860000,-453.0,0.00038192,90]
[421668076,1778035860000,-453.0,0.00038192,90]
[421668083,1778035860000,-453.0,0.00038192,90]
[421668084,1778035860000,-453.0,0.00038192,90]
[421668073,1778035860000,-453.0,0.00038192,90]
[421668078,1778035860000,-453.0,0.00038192,90]
[421668077,1778035860000,-453.0,0.00038192,90]
[421668080,1778035860000,-453.0,0.00038192,90]
[421668081,1778035860000,-453.0,0.00038192,90]
[421668079,1778035860000,-453.0,0.00038192,90]
[421668071,1778035860000,-453.0,0.00038192,90]
[421668060,1778035860000,-453.0,0.00038192,90]
[421668116,1778035860000,-453.0,0.00038192,90]
[421668121,1778035860000,-453.0,0.00038192,90]
[421668159,1778035860000,-481.18706949,0.00038365,2]
[421668158,1778035860000,-303.90239165,0.00038365,2]
[421668160,1778035860000,-451.13853711,0.00038365,2]
[421668152,1778035860000,-1165.41663756,0.00038365,2]
[421668150,1778035860000,-362.57660227,0.00038365,2]
[421668151,1778035860000,-300.0,0.00038365,2]
[421668153,1778035860000,-300.0,0.00038365,2]
[421668154,1778035860000,-862.96230178,0.00038365,2]
[421668161,1778035860000,-300.0,0.00038365,2]
[421668162,1778035860000,-300.0,0.00038365,2]
[421668172,1778035860000,-300.0,0.00038365,2]
[421668168,1778035860000,-300.0,0.00038365,2]
[421668167,1778035860000,-483.27319916,0.00038365,2]
[421668157,1778035860000,-463.08064867,0.00038365,2]
[421668165,1778035860000,-300.0,0.00038365,2]
[421668166,1778035860000,-300.0,0.00038365,2]
[421668170,1778035860000,-300.0,0.00038365,2]
[421668171,1778035860000,-350.10858405,0.00038365,2]
[421668173,1778035860000,-300.0,0.00038365,2]
[421668169,1778035860000,-300.0,0.00038365,2]
[421668163,1778035860000,-305.54030575,0.00038365,2]
[421668174,1778035860000,-300.0,0.00038365,2]
[421668178,1778035860000,-300.0,0.00038365,2]
[421668177,1778035860000,-302.91962695,0.00038365,2]
[421668176,1778035860000,-300.0,0.00038365,2]
[421668175,1778035860000,-300.0,0.00038365,2]
[421668122,1778035860000,-453.0,0.00038192,90]
[421668180,1778035860000,-300.0,0.00038365,2]
[421668164,1778035860000,-300.0,0.00038365,2]
[421668155,1778035860000,-300.0,0.00038365,2]
[421668179,1778035860000,-300.0,0.00038365,2]
[421668148,1778035860000,-301.55587555,0.00038365,2]
[421668156,1778035860000,-300.0,0.00038365,2]
[421668117,1778035860000,-453.0,0.00038192,90]
[421668119,1778035860000,-453.0,0.00038192,90]
[421668124,1778035860000,-453.0,0.00038192,90]
[421668125,1778035860000,-453.0,0.00038192,90]
[421668129,1778035860000,-453.0,0.00038192,90]
[421668134,1778035860000,-250.0,0.00038308,7]
[421668126,1778035860000,-453.0,0.00038192,90]
[421668135,1778035860000,-622.46173044,0.00038329,120]
[421668128,1778035860000,-453.0,0.00038192,90]
[421668133,1778035860000,-250.0,0.00038308,7]
[421668136,1778035860000,-1681.7140229,0.00038329,120]
[421668130,1778035860000,-6726.50340421,0.000382,120]
[421668131,1778035860000,-5753.72912657,0.000382,120]
[421668120,1778035860000,-453.0,0.00038192,90]
[421668127,1778035860000,-453.0,0.00038192,90]
[421668132,1778035860000,-250.0,0.00038308,7]
[421668145,1778035860000,-300.0,0.00038365,2]
[421668143,1778035860000,-300.0,0.00038365,2]
[421668147,1778035860000,-315.64036395,0.00038365,2]
[421668146,1778035860000,-496.1411655,0.00038365,2]
[421668144,1778035860000,-300.0,0.00038365,2]
[421668149,1778035860000,-300.0,0.00038365,2]
[421668141,1778035860000,-158.63990247,0.00038356,30]
[421668139,1778035860000,-506.0,0.0003835,14]
[421668138,1778035860000,-707.3915,0.00038346,120]
[421668137,1778035860000,-707.3915,0.00038346,120]
[421668140,1778035860000,-300.9722,0.00038351,2]
[421668142,1778035860000,-158.63990247,0.00038356,120]
[421668222,1778035861000,-300.0,0.00038365,2]
[421668219,1778035861000,-300.0,0.00038365,2]
[421668220,1778035861000,-300.0,0.00038365,2]
[421668216,1778035861000,-481.18706949,0.00038365,2]
[421668215,1778035861000,-300.0,0.00038365,2]
[421668217,1778035861000,-300.0,0.00038365,2]
[421668218,1778035861000,-451.13853711,0.00038365,2]
[421668213,1778035861000,-300.0,0.00038365,2]
[421668212,1778035861000,-310.3725982,0.00038365,2]
[421668230,1778035861000,-756.5324272,0.00038366,120]
[421668214,1778035861000,-463.08064867,0.00038365,2]
[421668211,1778035861000,-300.0,0.00038365,2]
[421668229,1778035861000,-161.0132506,0.00038366,120]
[421668231,1778035861000,-420.2733581,0.00038366,120]
[421668225,1778035861000,-483.27319916,0.00038365,2]
[421668223,1778035861000,-300.0,0.00038365,2]
[421668228,1778035861000,-373.491894,0.00038366,120]
[421668226,1778035861000,-300.0,0.00038365,2]
[421668227,1778035861000,-300.0,0.00038365,2]
[421668224,1778035861000,-300.0,0.00038365,2]
[421668233,1778035861000,-267.9471117,0.00038366,120]
[421668243,1778035861000,-586.0147076,0.00038366,120]
[421668234,1778035861000,-159.2064288,0.00038366,120]
[421668241,1778035861000,-704.3748623,0.00038366,120]
[421668235,1778035861000,-158.4902185,0.00038366,120]
[421668206,1778035861000,-300.0,0.00038365,2]
[421668221,1778035861000,-300.0,0.00038365,2]
[421668205,1778035861000,-309.07064608,0.00038365,2]
[421668193,1778035861000,-300.0,0.00038365,2]
[421668203,1778035861000,-300.0,0.00038365,2]
[421668185,1778035861000,-301.55627211,0.00038365,2]
[421668186,1778035861000,-300.0,0.00038365,2]
[421668184,1778035861000,-300.0,0.00038365,2]
[421668181,1778035861000,-302.8232171,0.00038365,2]
[421668182,1778035861000,-300.0,0.00038365,2]
[421668183,1778035861000,-496.1411655,0.00038365,2]
[421668187,1778035861000,-300.0,0.00038365,2]
[421668189,1778035861000,-300.65986561,0.00038365,2]
[421668191,1778035861000,-300.38205087,0.00038365,2]
[421668188,1778035861000,-476.87909536,0.00038365,2]
[421668190,1778035861000,-1065.13491717,0.00038365,2]
[421668192,1778035861000,-724.83131769,0.00038365,2]
[421668208,1778035861000,-1805.51200897,0.00038365,2]
[421668198,1778035861000,-429.73287081,0.00038365,2]
[421668199,1778035861000,-300.0,0.00038365,2]
[421668196,1778035861000,-300.0,0.00038365,2]
[421668197,1778035861000,-300.0,0.00038365,2]
[421668195,1778035861000,-302.33136207,0.00038365,2]
[421668201,1778035861000,-300.0,0.00038365,2]
[421668204,1778035861000,-1145.24599896,0.00038365,2]
[421668202,1778035861000,-300.0,0.00038365,2]
[421668200,1778035861000,-343.40295571,0.00038365,2]
[421668239,1778035861000,-500.0,0.00038366,120]
[421668207,1778035861000,-862.96230178,0.00038365,2]
[421668209,1778035861000,-300.0,0.00038365,2]
[421668210,1778035861000,-300.0,0.00038365,2]
[421668194,1778035861000,-300.06118393,0.00038365,2]
[421668238,1778035861000,-500.0,0.00038366,120]
[421668268,1778035861000,-253.5694987,0.00039216,120]
[421668232,1778035861000,-510.8519361,0.00038366,120]
[421668278,1778035861000,-5753.72912657,0.000394,120]
[421668271,1778035861000,-651.23,0.00039243,120]
[421668270,1778035861000,-234.61230008,0.00039216,120]
[421668277,1778035861000,-6726.50340421,0.000394,120]
[421668276,1778035861000,-300.9722,0.0003931,2]
[421668275,1778035861000,-157.0,0.00039309,3]
[421668274,1778035861000,-2000.0,0.000393,7]
[421668273,1778035861000,-150.0,0.0003925,120]
[421668272,1778035861000,-3646.8,0.00039243,120]
[421668281,1778035861000,-624.0,0.00039425,2]
[421668282,1778035861000,-1352.0,0.00039425,2]
[421668283,1778035861000,-1221.0,0.00039425,2]
[421668279,1778035861000,-160.0,0.000394,71]
[421668284,1778035861000,-150.0,0.00039458,120]
[421668288,1778035861000,-250.0,0.00039479,61]
[421668287,1778035861000,-163.0,0.00039467,11]
[421668289,1778035861000,-253.5694987,0.0003949,120]
[421668291,1778035861000,-150.0,0.000395,120]
[421668286,1778035861000,-2305.0,0.00039467,11]
[421668290,1778035861000,-234.61230008,0.0003949,120]
[421668292,1778035861000,-85624.50930566,0.00039552,57]
[421668294,1778035861000,-165.0976331,0.00039627,5]
[421668295,1778035861000,-500.0,0.00039726,15]
[421668296,1778035861000,-500.0,0.00039726,15]
[421668297,1778035861000,-500.0,0.00039726,15]
[421668240,1778035861000,-500.0,0.00038366,120]
[421668285,1778035861000,-150.0,0.00039458,120]
[421668280,1778035861000,-426.135,0.00039425,2]
[421668293,1778035861000,-150.0,0.00039579,2]
[421668264,1778035861000,-20747.28441706,0.00038983,2]
[421668236,1778035861000,-500.0,0.00038366,120]
[421668237,1778035861000,-500.0,0.00038366,120]
[421668242,1778035861000,-500.0,0.00038366,120]
[421668244,1778035861000,-212.3117556,0.00038366,120]
[421668245,1778035861000,-253.5694987,0.00038394,120]
[421668246,1778035861000,-155.2658515,0.00038394,120]
[421668250,1778035861000,-163.0,0.000384,11]
[421668269,1778035861000,-155.2658515,0.00039216,120]
[421668249,1778035861000,-160.0,0.000384,68]
[421668255,1778035861000,-253.5694987,0.00038668,120]
[421668248,1778035861000,-155.26585149,0.00038394,120]
[421668253,1778035861000,-150.0,0.000385,120]
[421668256,1778035861000,-234.61230008,0.00038668,120]
[421668247,1778035861000,-234.61230008,0.00038394,120]
[421668251,1778035861000,-171.98767098,0.00038497,14]
[421668254,1778035861000,-461.9,0.00038524,2]
[421668262,1778035861000,-253.5694987,0.00038942,120]
[421668265,1778035861000,-150.0,0.00039,120]
[421668263,1778035861000,-234.61230008,0.00038942,120]
[421668260,1778035861000,-500.0,0.00038904,5]
[421668266,1778035861000,-388.79,0.000391,120]
[421668267,1778035861000,-506.0,0.00039151,15]
[421668261,1778035861000,-1597.62615258,0.00038904,5]
[421668259,1778035861000,-461.94485924,0.00038894,2]
[421668258,1778035861000,-150.0,0.0003875,120]
[421668252,1778035861000,-78194.19,0.000385,7]
[421668257,1778035861000,-184.58,0.00038735,2]
[421668338,1778035862000,-929.43,0.00039825,120]
[421668334,1778035862000,-219.33,0.00039817,30]
[421668335,1778035862000,-350.0,0.00039819,8]
[421668330,1778035862000,-2005.9555727,0.00039799,30]
[421668332,1778035862000,-10000.0,0.00039805,2]
[421668331,1778035862000,-2000.0,0.00039805,2]
[421668333,1778035862000,-500.0,0.00039817,30]
[421668328,1778035862000,-92606.114982,0.00039766,2]
[421668329,1778035862000,-209495.5716,0.00039796,30]
[421668336,1778035862000,-1934.38338737,0.00039819,30]
[421668337,1778035862000,-500.0,0.0003982,30]
[421668346,1778035862000,-506.0,0.00039952,16]
[421668341,1778035862000,-215.99626,0.000399,120]
[421668343,1778035862000,-9096.00213455,0.00039911,15]
[421668342,1778035862000,-25000.0,0.00039905,15]
[421668340,1778035862000,-1865.36488657,0.00039899,30]
[421668344,1778035862000,-25000.0,0.00039914,15]
[421668349,1778035862000,-6475.7775336,0.0004,120]
[421668348,1778035862000,-581.75674179,0.0003997,2]
[421668350,1778035862000,-384.76,0.0004,120]
[421668347,1778035862000,-400.0,0.0003997,2]
[421668351,1778035862000,-342.51,0.0004,120]
[421668345,1778035862000,-929.43,0.00039925,120]
[421668323,1778035862000,-10000.0,0.00039748,2]
[421668363,1778035862000,-164.0,0.00040069,11]
[421668339,1778035862000,-25000.0,0.00039896,15]
[421668320,1778035862000,-500.0,0.00039726,15]
[421668309,1778035862000,-500.0,0.00039726,15]
[421668326,1778035862000,-253.5694987,0.00039764,120]
[421668353,1778035862000,-730.9,0.0004,120]
[421668299,1778035862000,-400.00000002,0.00039726,15]
[421668304,1778035862000,-500.0,0.00039726,15]
[421668298,1778035862000,-500.0,0.00039726,15]
[421668302,1778035862000,-500.0,0.00039726,15]
[421668300,1778035862000,-500.0,0.00039726,15]
[421668303,1778035862000,-500.0,0.00039726,15]
[421668305,1778035862000,-500.0,0.00039726,15]
[421668301,1778035862000,-500.0,0.00039726,15]
[421668307,1778035862000,-500.0,0.00039726,15]
[421668315,1778035862000,-500.0,0.00039726,15]
[421668316,1778035862000,-500.0,0.00039726,15]
[421668308,1778035862000,-500.0,0.00039726,15]
[421668306,1778035862000,-500.0,0.00039726,15]
[421668313,1778035862000,-500.0,0.00039726,15]
[421668310,1778035862000,-500.0,0.00039726,15]
[421668312,1778035862000,-500.0,0.00039726,15]
[421668311,1778035862000,-500.0,0.00039726,15]
[421668314,1778035862000,-500.0,0.00039726,15]
[421668318,1778035862000,-500.0,0.00039726,15]
[421668319,1778035862000,-500.0,0.00039726,15]
[421668317,1778035862000,-500.0,0.00039726,15]
[421668322,1778035862000,-357.0,0.00039726,30]
[421668325,1778035862000,-508.0,0.00039755,30]
[421668324,1778035862000,-150.0,0.0003975,120]
[421668321,1778035862000,-265.0,0.00039726,30]
[421668352,1778035862000,-203.14,0.0004,120]
[421668327,1778035862000,-234.61230008,0.00039764,120]
[421668359,1778035862000,-929.43,0.00040025,120]
[421668385,1778035862000,-929.43,0.00040425,120]
[421668388,1778035862000,-2085.09384116,0.0004047,30]
[421668390,1778035862000,-5753.72912657,0.000405,120]
[421668389,1778035862000,-6726.50340421,0.000405,120]
[421668394,1778035862000,-573.36,0.00040544,120]
[421668387,1778035862000,-2085.09384116,0.0004047,30]
[421668391,1778035862000,-11401.42,0.000405,120]
[421668392,1778035862000,-150.0,0.000405,120]
[421668393,1778035862000,-929.43,0.00040525,120]
[421668395,1778035862000,-253.5694987,0.00040586,120]
[421668397,1778035862000,-153.56,0.0004059,120]
[421668408,1778035862000,-2467.771,0.000408,30]
[421668399,1778035862000,-8502.31255639,0.00040603,2]
[421668398,1778035862000,-184.59,0.0004059,120]
[421668400,1778035862000,-929.43,0.00040625,120]
[421668404,1778035862000,-176.3,0.0004075,120]
[421668402,1778035862000,-36937.36668809,0.000407,6]
[421668405,1778035862000,-190.07893127,0.0004075,120]
[421668406,1778035862000,-506.0,0.00040753,16]
[421668403,1778035862000,-929.43,0.00040725,120]
[421668407,1778035862000,-250.0,0.00040796,83]
[421668410,1778035862000,-2467.77,0.000408,30]
[421668409,1778035862000,-2467.771,0.000408,30]
[421668411,1778035862000,-929.43,0.00040825,120]
[421668412,1778035862000,-3567.23845485,0.0004085,2]
[421668396,1778035862000,-234.61230008,0.00040586,120]
[421668386,1778035862000,-2085.09384117,0.0004047,30]
[421668401,1778035862000,-151.0,0.000407,120]
[421668383,1778035862000,-361.72528501,0.00040346,14]
[421668382,1778035862000,-929.43,0.00040325,120]
[421668358,1778035862000,-150.0,0.0004,120]
[421668360,1778035862000,-253.5694987,0.00040038,120]
[421668354,1778035862000,-350.12,0.0004,120]
[421668362,1778035862000,-5898.63,0.00040044,120]
[421668355,1778035862000,-151.0,0.0004,120]
[421668356,1778035862000,-154.0,0.0004,120]
[421668357,1778035862000,-300.0,0.0004,2]
[421668365,1778035862000,-1546.85880565,0.00040182,120]
[421668364,1778035862000,-929.43,0.00040125,120]
[421668368,1778035862000,-929.43,0.00040225,120]
[421668369,1778035862000,-150.0,0.0004025,120]
[421668370,1778035862000,-508.60317527,0.00040256,21]
[421668367,1778035862000,-251.38704228,0.00040192,2]
[421668361,1778035862000,-234.61230008,0.00040038,120]
[421668366,1778035862000,-1798.80895522,0.00040191,30]
[421668377,1778035862000,-2431.19,0.0004029,60]
[421668375,1778035862000,-434.15,0.0004029,60]
[421668376,1778035862000,-3932.42,0.0004029,60]
[421668379,1778035862000,-163.0,0.00040294,11]
[421668378,1778035862000,-26073.07,0.0004029,60]
[421668380,1778035862000,-253.5694987,0.00040312,120]
[421668381,1778035862000,-234.61230008,0.00040312,120]
[421668384,1778035862000,-160.0,0.000404,74]
[421668374,1778035862000,-300.9723,0.00040269,2]
[421668371,1778035862000,-800.0,0.00040256,21]
[421668372,1778035862000,-500.0,0.00040256,21]
[421668373,1778035862000,-199.28028001,0.00040258,2]
[421668430,1778035863000,-311.0,0.00029773,10]
[421668432,1778035863000,-166.702786,0.000367,7]
[421668431,1778035863000,-151.0,0.000367,7]
[421668433,1778035863000,-300.0,0.00038365,2]
[421668435,1778035863000,-151.0,0.000367,7]
[421668436,1778035863000,-171498.21218976,0.0004095,60]
[421668439,1778035863000,-162.249416,0.0004095,30]
[421668437,1778035863000,-162.249416,0.0004095,30]
[421668442,1778035863000,-151.0,0.0004095,30]
[421668438,1778035863000,-162.249416,0.0004095,30]
[421668429,1778035863000,-151.0,0.00028,7]
[421668443,1778035863000,-151.0,0.0004095,30]
[421668434,1778035863000,-6149.77145763,0.0004095,60]
[421668427,1778035863000,-151.0,0.00027397,2]
[421668422,1778035863000,-284.00541163,0.00021273,2]
[421668424,1778035863000,-166.702792,0.00021861,2]
[421668428,1778035863000,-166.702792,0.00028,7]
[421668425,1778035863000,-151.0,0.00027397,2]
[421668423,1778035863000,-84.12017237,0.00021273,2]
[421668447,1778035863000,-350.0,0.00040979,7]
[421668421,1778035863000,-66.024416,0.00021273,2]
[421668420,1778035863000,-166.702792,0.00014049,2]
[421668419,1778035863000,-166.702792,0.00013223,2]
[421668418,1778035863000,-63898.01635261,0.0004095,60]
[421668415,1778035863000,-152.52386965,0.00040862,120]
[421668417,1778035863000,-929.43,0.00040925,120]
[421668414,1778035863000,-234.61230008,0.0004086,120]
[421668413,1778035863000,-253.5694987,0.0004086,120]
[421668426,1778035863000,-151.0,0.00027397,2]
[421668416,1778035863000,-22574.93,0.000409,120]
[421668440,1778035863000,-162.249416,0.0004095,30]
[421668448,1778035863000,-619.22006424,0.00040994,2]
[421668446,1778035863000,-164.42,0.00040959,60]
[421668474,1778035863000,-261.675546,0.00041096,120]
[421668472,1778035863000,-265.236553,0.00041096,120]
[421668471,1778035863000,-1560.0,0.00041096,120]
[421668469,1778035863000,-1666.83,0.00041095,30]
[421668470,1778035863000,-164.0,0.00041096,30]
[421668466,1778035863000,-597.04708204,0.00041094,120]
[421668473,1778035863000,-163.762888,0.00041096,120]
[421668464,1778035863000,-800.0,0.00041078,21]
[421668467,1778035863000,-597.04708204,0.00041094,120]
[421668465,1778035863000,-83174.037,0.00041081,30]
[421668468,1778035863000,-1546.85880565,0.00041095,120]
[421668463,1778035863000,-975.99992355,0.00041065,120]
[421668462,1778035863000,-1601.0,0.00041051,11]
[421668458,1778035863000,-293.0,0.00041,90]
[421668475,1778035863000,-160.051757,0.00041096,120]
[421668459,1778035863000,-1000.0,0.00041005,90]
[421668457,1778035863000,-168.58,0.00041,3]
[421668445,1778035863000,-164.42,0.00040959,60]
[421668450,1778035863000,-400.0,0.00040997,2]
[421668460,1778035863000,-929.43,0.00041025,120]
[421668461,1778035863000,-1142.1,0.00041041,120]
[421668452,1778035863000,-2085.89070288,0.00041,120]
[421668441,1778035863000,-151.0,0.0004095,30]
[421668453,1778035863000,-661.6072534,0.00041,30]
[421668455,1778035863000,-12631.0,0.00041,120]
[421668451,1778035863000,-401.02609724,0.00040997,2]
[421668444,1778035863000,-237.853962,0.0004095,30]
[421668454,1778035863000,-78194.19,0.00041,7]
[421668449,1778035863000,-11742.03605366,0.00040994,2]
[421668456,1778035863000,-3551.0,0.00041,60]
[421668504,1778035864000,-4474.463411,0.00041096,120]
[421668521,1778035864000,-151.0,0.00041096,120]
[421668506,1778035864000,-4474.463411,0.00041096,120]
[421668505,1778035864000,-1133.22377,0.00041096,120]
[421668499,1778035864000,-4474.463411,0.00041096,120]
[421668510,1778035864000,-151.0,0.00041096,120]
[421668516,1778035864000,-4474.463411,0.00041096,120]
[421668522,1778035864000,-4474.463411,0.00041096,120]
[421668519,1778035864000,-151.0,0.00041096,120]
[421668511,1778035864000,-4474.463411,0.00041096,120]
[421668523,1778035864000,-151.0,0.00041096,120]
[421668513,1778035864000,-4474.463411,0.00041096,120]
[421668512,1778035864000,-151.0,0.00041096,120]
[421668535,1778035864000,-232.29785,0.00041096,120]
[421668517,1778035864000,-151.0,0.00041096,120]
[421668515,1778035864000,-151.0,0.00041096,120]
[421668514,1778035864000,-4474.463411,0.00041096,120]
[421668518,1778035864000,-4474.463411,0.00041096,120]
[421668525,1778035864000,-210.269523,0.00041096,120]
[421668524,1778035864000,-4474.463411,0.00041096,120]
[421668528,1778035864000,-4474.463411,0.00041096,120]
[421668527,1778035864000,-4474.463411,0.00041096,120]
[421668536,1778035864000,-232.29785,0.00041096,120]
[421668534,1778035864000,-232.29785,0.00041096,120]
[421668531,1778035864000,-232.29785,0.00041096,120]
[421668507,1778035864000,-4474.463411,0.00041096,120]
[421668520,1778035864000,-4474.463411,0.00041096,120]
[421668508,1778035864000,-4474.463411,0.00041096,120]
[421668485,1778035864000,-1133.223767,0.00041096,120]
[421668498,1778035864000,-1133.223767,0.00041096,120]
[421668526,1778035864000,-4474.463411,0.00041096,120]
[421668478,1778035864000,-164.124651,0.00041096,14]
[421668476,1778035864000,-223.788008,0.00041096,120]
[421668480,1778035864000,-189.177677,0.00041096,120]
[421668479,1778035864000,-201.455298,0.00041096,120]
[421668482,1778035864000,-190.552755,0.00041096,120]
[421668481,1778035864000,-162.686162,0.00041096,120]
[421668483,1778035864000,-1133.223767,0.00041096,120]
[421668484,1778035864000,-1133.223767,0.00041096,120]
[421668477,1778035864000,-282.410634,0.00041096,120]
[421668486,1778035864000,-1133.223767,0.00041096,120]
[421668496,1778035864000,-1133.223767,0.00041096,120]
[421668502,1778035864000,-4474.463411,0.00041096,120]
[421668488,1778035864000,-1133.223767,0.00041096,120]
[421668487,1778035864000,-1133.223767,0.00041096,120]
[421668493,1778035864000,-1133.223767,0.00041096,120]
[421668495,1778035864000,-1133.223767,0.00041096,120]
[421668494,1778035864000,-1133.223767,0.00041096,120]
[421668490,1778035864000,-1133.223767,0.00041096,120]
[421668492,1778035864000,-1133.223767,0.00041096,120]
[421668491,1778035864000,-1133.223767,0.00041096,120]
[421668497,1778035864000,-1133.223767,0.00041096,120]
[421668500,1778035864000,-1133.223767,0.00041096,120]
[421668501,1778035864000,-1133.223767,0.00041096,120]
[421668509,1778035864000,-4474.463411,0.00041096,120]
[421668503,1778035864000,-1133.223767,0.00041096,120]
[421668489,1778035864000,-1133.223767,0.00041096,120]
[421668530,1778035864000,-4474.463404,0.00041096,120]